[Event "Djerba Festival Blitz 2025"]
[Site "Djerba"]
[Date "2025.02.21"]
[Round "7.1"]
[White "Oro, Faustino"]
[Black "Dardha, Daniel"]
[Result "0-1"]
[ECO "E12"]
[WhiteElo "2447"]
[BlackElo "2652"]
[PlyCount "148"]
[EventDate "2025.02.15"]
[EventType "swiss"]
[EventCountry "TUN"]
[TimeControl "180+3"]

1. d4 {[%emt 0:00:04]} Nf6 {[%emt 0:00:03]} 2. c4 {[%emt 0:00:03]} e6 {[%emt 0:00:02]} 3. Nf3 {[%emt 0:00:02]} b6 {[%emt 0:00:03]} 4. a3 {[%emt 0:00:08]} Ba6 {[%emt 0:00:02]} 5. Qc2 {[%emt 0:00:12]} c5 {[%emt 0:00:05]} 6. d5 {[%emt 0:00:09]} exd5 {[%emt 0:00:10]} 7. cxd5 {[%emt 0:00:02]} Bb7 {[%emt 0:00:03]} 8. e4 {[%emt 0:00:26]} Qe7 {[%emt 0:00:02]} 9. Bd3 {[%emt 0:00:02]} Nxd5 {[%emt 0:00:16]} 10. O-O {[%emt 0:00:05]} Nc7 {[%emt 0:00:02]} 11. Nc3 {[%emt 0:00:05]} Qd8 {[%emt 0:00:02]} 12. Bc4 {[%emt 0:00:18]} Be7 {[%emt 0:00:08]} 13. e5 {[%emt 0:00:10]} O-O {[%emt 0:00:18]} 14. Qf5 {[%emt 0:00:04]} Ne6 {[%emt 0:00:09]} 15. Nd5 {[%emt 0:00:06]} Nc6 {[%emt 0:00:09]} 16. Bd3 {[%emt 0:00:16]} g6 {[%emt 0:00:02]} 17. Nxe7+ {[%emt 0:00:02]} Qxe7 {[%emt 0:00:07]} 18. Qg4 {[%emt 0:00:25]} Ncd4 {[%emt 0:00:10]} 19. Nxd4 {[%emt 0:00:08]} Nxd4 {[%emt 0:00:02]} 20. Re1 {[%emt 0:00:05]} Qe6 {[%emt 0:00:29]} 21. Qg3 {[%emt 0:00:03]} Rfe8 {[%emt 0:00:08]} 22. Bg5 {[%emt 0:00:03]} d6 {[%emt 0:00:15]} 23. Bf6 {[%emt 0:00:46]} dxe5 {[%emt 0:00:04]} 24. Qh4 {[%emt 0:00:08]} Nf5 {[%emt 0:00:09]} 25. Bxf5 {[%emt 0:00:13]} Qxf5 {[%emt 0:00:02]} 26. Rad1 {[%emt 0:00:07]} Re6 {[%emt 0:00:09]} 27. Bg5 {[%emt 0:00:08]} h5 {[%emt 0:00:07]} 28. h3 {[%emt 0:00:02]} f6 {[%emt 0:00:09]} 29. Be3 {[%emt 0:00:02]} Bc6 {[%emt 0:00:02]} 30. Rd2 {[%emt 0:00:03]} Qe4 {[%emt 0:00:16]} 31. Qxe4 {[%emt 0:00:01]} Bxe4 {[%emt 0:00:02]} 32. Bxc5 {[%emt 0:00:02]} Bxg2 {[%emt 0:00:05]} 33. Kxg2 {[%emt 0:00:02]} bxc5 {[%emt 0:00:02]} 34. Rc1 {[%emt 0:00:01]} Rc6 {[%emt 0:00:06]} 35. Rd7 {[%emt 0:00:04]} a6 {[%emt 0:00:11]} 36. Rcd1 {[%emt 0:00:05]} Rf8 {[%emt 0:00:40]} 37. R1d5 {[%emt 0:00:07]} Rf7 {[%emt 0:00:00]} 38. Rd8+ {[%emt 0:00:03]} Kg7 {[%emt 0:00:00]} 39. Rb8 {[%emt 0:00:03]} h4 {[%emt 0:00:00]} 40. Rb3 {[%emt 0:00:04]} c4 {[%emt 0:00:00]} 41. Rb4 {[%emt 0:00:02]} Kh6 {[%emt 0:00:00]} 42. Ra4 {[%emt 0:00:02]} Rb7 {[%emt 0:00:00]} 43. Rd2 {[%emt 0:00:03]} Rb3 {[%emt 0:00:00]} 44. Rc2 {[%emt 0:00:02]} Kg5 {[%emt 0:00:00]} 45. Ra5 {[%emt 0:00:06]} c3 {[%emt 0:00:00]} 46. bxc3 {[%emt 0:00:02]} Rcxc3 {[%emt 0:00:00]} 47. Rxc3 Rxc3 {[%emt 0:00:33]} 48. Rxa6 {[%emt 0:00:06]} e4 {[%emt 0:00:00]} 49. a4 {[%emt 0:00:03]} Rc2 {[%emt 0:00:00]} 50. Re6 {[%emt 0:00:04]} f5 {[%emt 0:00:00]} 51. a5 {[%emt 0:00:01]} Ra2 {[%emt 0:00:00]} 52. a6 {[%emt 0:00:02]} Kf4 {[%emt 0:00:00]} 53. a7 {[%emt 0:00:07]} Rxa7 {[%emt 0:00:00]} 54. Rxg6 {[%emt 0:00:01]} Ra2 {[%emt 0:00:00]} 55. Re6 {[%emt 0:00:02]} Re2 {[%emt 0:00:00]} 56. Rh6 {[%emt 0:00:04]} Kg5 {[%emt 0:00:13]} 57. Re6 {[%emt 0:00:02]} f4 {[%emt 0:00:05]} 58. Kf1 {[%emt 0:00:03]} f3 {[%emt 0:00:02]} 59. Re8 {[%emt 0:00:02]} Kf4 {[%emt 0:00:04]} 60. Rf8+ {[%emt 0:00:02]} Ke5 {[%emt 0:00:02]} 61. Re8+ {[%emt 0:00:01]} Kd4 {[%emt 0:00:01]} 62. Rd8+ {[%emt 0:00:02]} Kc3 {[%emt 0:00:02]} 63. Rc8+ {[%emt 0:00:02]} Kd3 {[%emt 0:00:03]} 64. Rd8+ {[%emt 0:00:02]} Kc2 {[%emt 0:00:02]} 65. Ra8 {[%emt 0:00:11]} Rd2 {[%emt 0:00:04]} 66. Kg1 {[%emt 0:00:04]} Rd1+ {[%emt 0:00:02]} 67. Kh2 {[%emt 0:00:02]} e3 {[%emt 0:00:08]} 68. Ra2+ {[%emt 0:00:02]} Kb3 {[%emt 0:00:02]} 69. Ra8 {[%emt 0:00:06]} Rd2 {[%emt 0:00:05]} 70. Rb8+ {[%emt 0:00:02]} Kc4 {[%emt 0:00:02]} 71. Rc8+ {[%emt 0:00:03]} Kd3 {[%emt 0:00:02]} 72. Rd8+ {[%emt 0:00:03]} Ke2 {[%emt 0:00:02]} 73. Rh8 {[%emt 0:00:03]} Kxf2 {[%emt 0:00:02]} 74. Rxh4 {[%emt 0:00:02]} e2 {[%emt 0:00:02]} 0-1

[Event "Djerba Festival Blitz 2025"]
[Site "Djerba"]
[Date "2025.02.21"]
[Round "7.2"]
[White "Maurizzi, Marc`Andria"]
[Black "Kobalia, Mikhail"]
[Result "1-0"]
[ECO "B80"]
[WhiteElo "2581"]
[BlackElo "2538"]
[PlyCount "126"]
[EventDate "2025.02.15"]
[EventType "swiss"]
[EventCountry "TUN"]
[TimeControl "180+3"]

1. e4 {[%emt 0:00:02]} c5 {[%emt 0:00:02]} 2. Nf3 {[%emt 0:00:02]} e6 {[%emt 0:00:02]} 3. d4 {[%emt 0:00:10]} cxd4 {[%emt 0:00:02]} 4. Nxd4 {[%emt 0:00:02]} Nc6 {[%emt 0:00:02]} 5. Nc3 {[%emt 0:00:02]} a6 {[%emt 0:00:02]} 6. Be3 {[%emt 0:00:08]} Nf6 {[%emt 0:00:03]} 7. Bd3 {[%emt 0:00:19]} d6 {[%emt 0:00:05]} 8. O-O {[%emt 0:00:05]} Be7 {[%emt 0:00:02]} 9. Nb3 {[%emt 0:00:03]} b5 {[%emt 0:00:06]} 10. a3 {[%emt 0:00:02]} O-O {[%emt 0:00:03]} 11. f4 {[%emt 0:00:02]} Bb7 {[%emt 0:00:03]} 12. Qf3 {[%emt 0:00:02]} Nd7 {[%emt 0:00:28]} 13. Rad1 {[%emt 0:00:05]} Qc7 {[%emt 0:00:02]} 14. Qh3 {[%emt 0:00:06]} Rfd8 {[%emt 0:01:01]} 15. f5 {[%emt 0:00:12]} exf5 {[%emt 0:00:19]} 16. Nd5 {[%emt 0:00:17]} Qb8 {[%emt 0:00:12]} 17. Qxf5 {[%emt 0:00:24]} Nde5 {[%emt 0:00:11]} 18. Nd4 {[%emt 0:00:09]} Bf8 {[%emt 0:00:19]} 19. Qg5 {[%emt 0:00:41]} Kh8 {[%emt 0:00:25]} 20. Nf5 {[%emt 0:00:03]} Re8 {[%emt 0:00:08]} 21. Rf4 {[%emt 0:00:13]} Re6 {[%emt 0:00:02]} 22. Qg3 {[%emt 0:00:21]} Rg6 {[%emt 0:00:02]} 23. Qh3 {[%emt 0:00:02]} Qd8 {[%emt 0:00:12]} 24. Rh4 {[%emt 0:00:06]} h6 {[%emt 0:00:02]} 25. Nf4 {[%emt 0:00:11]} Rf6 {[%emt 0:00:06]} 26. Nh5 {[%emt 0:00:10]} Rg6 {[%emt 0:00:01]} 27. Kh1 {[%emt 0:00:04]} Ne7 {[%emt 0:00:04]} 28. Nf4 {[%emt 0:00:12]} Nxf5 {[%emt 0:00:04]} 29. exf5 {[%emt 0:00:03]} Rg5 {[%emt 0:00:04]} 30. Rh5 {[%emt 0:00:08]} Rxh5 {[%emt 0:00:04]} 31. Nxh5 {[%emt 0:00:02]} Be7 {[%emt 0:00:06]} 32. Nxg7 {[%emt 0:00:02]} Bg5 {[%emt 0:00:04]} 33. Nh5 {[%emt 0:00:04]} Bxe3 {[%emt 0:00:03]} 34. Qxe3 {[%emt 0:00:02]} Qg5 {[%emt 0:00:01]} 35. Qxg5 {[%emt 0:00:02]} hxg5 {[%emt 0:00:02]} 36. Be2 {[%emt 0:00:02]} Rc8 {[%emt 0:00:03]} 37. c3 {[%emt 0:00:01]} Rd8 {[%emt 0:00:04]} 38. Ng3 {[%emt 0:00:10]} Kg7 {[%emt 0:00:03]} 39. Kg1 {[%emt 0:00:02]} g4 {[%emt 0:00:03]} 40. Rd4 {[%emt 0:00:02]} Kh6 {[%emt 0:00:03]} 41. Bxg4 {[%emt 0:00:02]} Nc4 {[%emt 0:00:16]} 42. Bh3 {[%emt 0:00:06]} Nxb2 {[%emt 0:00:00]} 43. f6 {[%emt 0:00:01]} Re8 {[%emt 0:00:00]} 44. Nf5+ {[%emt 0:00:04]} Kg5 {[%emt 0:00:01]} 45. Nxd6 {[%emt 0:00:02]} Re1+ {[%emt 0:00:02]} 46. Kf2 {[%emt 0:00:02]} Rc1 {[%emt 0:00:06]} 47. Nxb7 {[%emt 0:00:02]} Rxc3 {[%emt 0:00:02]} 48. Nd6 {[%emt 0:00:03]} Rc2+ {[%emt 0:00:04]} 49. Ke1 {[%emt 0:00:03]} Kxf6 {[%emt 0:00:02]} 50. Rd2 {[%emt 0:00:07]} Rc1+ {[%emt 0:00:02]} 51. Ke2 {[%emt 0:00:02]} Na4 {[%emt 0:00:04]} 52. Rd3 {[%emt 0:00:02]} Rc2+ {[%emt 0:00:02]} 53. Kf3 {[%emt 0:00:02]} Nc5 {[%emt 0:00:03]} 54. Ne4+ {[%emt 0:00:02]} Nxe4 {[%emt 0:00:02]} 55. Kxe4 {[%emt 0:00:02]} Rc4+ {[%emt 0:00:02]} 56. Kd5 {[%emt 0:00:02]} Ra4 {[%emt 0:00:02]} 57. Rf3+ {[%emt 0:00:03]} Ke7 {[%emt 0:00:02]} 58. Kc5 {[%emt 0:00:15]} Rh4 {[%emt 0:00:04]} 59. Kb6 {[%emt 0:00:00]} Rh6+ {[%emt 0:00:02]} 60. Ka5 {[%emt 0:00:00]} Rd6 {[%emt 0:00:04]} 61. Bc8 {[%emt 0:00:00]} Rd2 {[%emt 0:00:02]} 62. Rg3 {[%emt 0:00:00]} Ra2 {[%emt 0:00:04]} 63. Bxa6 {[%emt 0:00:00]} Kd6 {[%emt 0:00:14]} 1-0

[Event "Djerba Festival Blitz 2025"]
[Site "Djerba"]
[Date "2025.02.21"]
[Round "7.3"]
[White "Njili, Kamel"]
[Black "Moussard, Jules"]
[Result "0-1"]
[ECO "B94"]
[WhiteElo "2406"]
[BlackElo "2595"]
[PlyCount "50"]
[EventDate "2025.02.15"]
[EventType "swiss"]
[EventCountry "TUN"]
[TimeControl "180+3"]

1. e4 {[%emt 0:00:03]} c5 {[%emt 0:00:03]} 2. Nf3 {[%emt 0:00:02]} d6 {[%emt 0:00:02]} 3. d4 {[%emt 0:00:02]} cxd4 {[%emt 0:00:01]} 4. Nxd4 {[%emt 0:00:01]} Nf6 {[%emt 0:00:02]} 5. Nc3 {[%emt 0:00:02]} a6 {[%emt 0:00:02]} 6. Bg5 {[%emt 0:00:02]} Nbd7 {[%emt 0:00:03]} 7. Bc4 {[%emt 0:00:26]} Qb6 {[%emt 0:00:03]} 8. Bb3 {[%emt 0:00:10]} e6 {[%emt 0:00:07]} 9. O-O {[%emt 0:00:27]} Be7 {[%emt 0:00:04]} 10. Be3 {[%emt 0:00:03]} Nc5 {[%emt 0:00:07]} 11. f4 {[%emt 0:01:03]} Qc7 {[%emt 0:00:04]} 12. f5 {[%emt 0:00:08]} b5 {[%emt 0:00:14]} 13. fxe6 {[%emt 0:00:15]} fxe6 {[%emt 0:00:03]} 14. Bg5 {[%emt 0:00:04]} Nxb3 {[%emt 0:00:11]} 15. axb3 {[%emt 0:00:04]} b4 {[%emt 0:00:07]} 16. Bxf6 {[%emt 0:00:22]} Bxf6 {[%emt 0:00:05]} 17. Rxf6 {[%emt 0:00:14]} gxf6 {[%emt 0:00:09]} 18. Ncb5 {[%emt 0:00:03]} Qc5 {[%emt 0:00:09]} 19. e5 {[%emt 0:00:18]} O-O {[%emt 0:00:25]} 20. Qg4+ {[%emt 0:00:09]} Kh8 {[%emt 0:00:02]} 21. exf6 {[%emt 0:00:03]} Rxf6 {[%emt 0:00:10]} 22. Qh4 {[%emt 0:00:02]} Rf8 {[%emt 0:00:10]} 23. Qe7 {[%emt 0:00:02]} Bd7 {[%emt 0:00:13]} 24. Qxd7 {[%emt 0:00:04]} axb5 {[%emt 0:00:04]} 25. Rxa8 {[%emt 0:00:06]} Qxd4+ {[%emt 0:00:03]} 0-1

[Event "Djerba Festival Blitz 2025"]
[Site "Djerba"]
[Date "2025.02.21"]
[Round "7.4"]
[White "Boudriga, Mohamed Ali"]
[Black "Stopa, Jacek"]
[Result "0-1"]
[ECO "C11"]
[WhiteElo "2323"]
[BlackElo "2310"]
[PlyCount "75"]
[EventDate "2025.02.15"]
[EventType "swiss"]
[EventCountry "TUN"]
[TimeControl "180+3"]

1. e4 {[%emt 0:00:04]} e6 {[%emt 0:00:02]} 2. d4 {[%emt 0:00:04]} d5 {[%emt 0:00:02]} 3. Nc3 {[%emt 0:00:05]} Nf6 {[%emt 0:00:02]} 4. e5 {[%emt 0:00:02]} Nfd7 {[%emt 0:00:02]} 5. f4 {[%emt 0:00:01]} c5 {[%emt 0:00:02]} 6. Nf3 {[%emt 0:00:02]} Nc6 {[%emt 0:00:02]} 7. Be3 {[%emt 0:00:02]} Qb6 {[%emt 0:00:02]} 8. Na4 {[%emt 0:00:13]} Qa5+ {[%emt 0:00:03]} 9. c3 {[%emt 0:00:02]} b6 {[%emt 0:00:02]} 10. a3 {[%emt 0:00:39]} c4 {[%emt 0:00:30]} 11. b4 {[%emt 0:00:33]} cxb3 {[%emt 0:00:11]} 12. Qxb3 {[%emt 0:00:02]} Ba6 {[%emt 0:00:08]} 13. Nb2 {[%emt 0:01:04]} Bxf1 {[%emt 0:00:06]} 14. Rxf1 {[%emt 0:00:06]} Be7 {[%emt 0:00:26]} 15. a4 {[%emt 0:00:05]} O-O {[%emt 0:00:15]} 16. Kf2 {[%emt 0:00:03]} Rac8 {[%emt 0:00:09]} 17. Rfc1 {[%emt 0:00:05]} Qa6 {[%emt 0:00:03]} 18. Qb5 {[%emt 0:00:02]} Qb7 {[%emt 0:00:01]} 19. c4 {[%emt 0:00:10]} a6 {[%emt 0:00:06]} 20. Qb3 {[%emt 0:00:03]} Na5 {[%emt 0:00:06]} 21. Qd3 {[%emt 0:00:03]} f6 {[%emt 0:00:11]} 22. cxd5 {[%emt 0:00:05]} Qxd5 {[%emt 0:00:03]} 23. Qxa6 {[%emt 0:00:07]} Rxc1 {[%emt 0:00:03]} 24. Rxc1 {[%emt 0:00:02]} fxe5 {[%emt 0:00:03]} 25. dxe5 {[%emt 0:00:05]} Nb3 {[%emt 0:00:20]} 26. Rd1 {[%emt 0:00:04]} Qc6 {[%emt 0:00:18]} 27. Qc4 {[%emt 0:00:14]} Nbc5 {[%emt 0:00:05]} 28. Qb5 {[%emt 0:00:05]} Qc7 {[%emt 0:00:18]} 29. Kg1 {[%emt 0:00:02]} Ra8 {[%emt 0:00:05]} 30. Nc4 {[%emt 0:00:03]} Nxa4 {[%emt 0:00:06]} 31. Rxd7 {[%emt 0:00:04]} Qc8 {[%emt 0:00:18]} 32. Rxe7 {[%emt 0:00:03]} Nc3 {[%emt 0:00:02]} 33. Qd7 {[%emt 0:00:02]} Ra1+ {[%emt 0:00:05]} 34. Kf2 {[%emt 0:00:04]} Ne4+ {[%emt 0:00:02]} 35. Ke2 {[%emt 0:00:11]} Qxc4+ {[%emt 0:00:02]} 36. Qd3 {[%emt 0:00:02]} Nc3+ {[%emt 0:00:01]} 37. Kf2 {[%emt 0:00:08]} Qxd3 {[%emt 0:00:03]} 38. Ng5 {[%emt 0:00:06]} 0-1

[Event "Djerba Festival Blitz 2025"]
[Site "Djerba"]
[Date "2025.02.21"]
[Round "7.5"]
[White "Filali, Razzouki Marouane"]
[Black "Willems, Niels"]
[Result "0-1"]
[ECO "D05"]
[WhiteElo "2234"]
[BlackElo "2414"]
[PlyCount "38"]
[EventDate "2025.02.15"]
[EventType "swiss"]
[EventCountry "TUN"]
[TimeControl "180+3"]

1. c3 {[%emt 0:00:03]} Nf6 {[%emt 0:00:03]} 2. d4 {[%emt 0:00:01]} d5 {[%emt 0:00:02]} 3. Nf3 {[%emt 0:00:02]} c5 {[%emt 0:00:06]} 4. e3 {[%emt 0:00:13]} e6 {[%emt 0:00:11]} 5. Bd3 {[%emt 0:00:03]} Nbd7 {[%emt 0:00:04]} 6. Nbd2 {[%emt 0:00:03]} b6 {[%emt 0:00:02]} 7. O-O {[%emt 0:00:04]} Bb7 {[%emt 0:00:02]} 8. Re1 {[%emt 0:00:01]} Ne4 {[%emt 0:00:02]} 9. c4 {[%emt 0:00:09]} Bd6 {[%emt 0:00:15]} 10. b3 {[%emt 0:00:13]} cxd4 {[%emt 0:00:18]} 11. exd4 {[%emt 0:00:06]} f5 {[%emt 0:00:07]} 12. Bb2 {[%emt 0:00:08]} O-O {[%emt 0:00:04]} 13. Ne5 {[%emt 0:00:08]} Nxe5 {[%emt 0:00:19]} 14. dxe5 {[%emt 0:00:03]} Bc5 {[%emt 0:00:01]} 15. Re2 {[%emt 0:00:28]} Qh4 {[%emt 0:00:08]} 16. Nf3 {[%emt 0:00:26]} Nxf2 {[%emt 0:00:06]} 17. Nxh4 {[%emt 0:00:13]} Nxd1+ {[%emt 0:00:04]} 18. Kf1 {[%emt 0:00:11]} Nxb2 {[%emt 0:00:02]} 19. Rxb2 {[%emt 0:00:02]} Bd4 {[%emt 0:00:03]} 0-1

[Event "Djerba Festival Blitz 2025"]
[Site "Djerba"]
[Date "2025.02.21"]
[Round "7.6"]
[White "Kakavand, Ramtin"]
[Black "Edouard, Romain"]
[Result "1/2-1/2"]
[ECO "B51"]
[WhiteElo "2106"]
[BlackElo "2544"]
[PlyCount "127"]
[EventDate "2025.02.15"]
[EventType "swiss"]
[EventCountry "TUN"]
[TimeControl "180+3"]

1. e4 {[%emt 0:00:04]} c5 {[%emt 0:00:03]} 2. Nf3 {[%emt 0:00:02]} d6 {[%emt 0:00:02]} 3. Bb5+ {[%emt 0:00:02]} Nd7 {[%emt 0:00:02]} 4. a4 {[%emt 0:00:02]} Ngf6 {[%emt 0:00:03]} 5. Nc3 {[%emt 0:00:02]} g6 {[%emt 0:00:06]} 6. O-O {[%emt 0:00:04]} Bg7 {[%emt 0:00:02]} 7. d4 {[%emt 0:00:03]} cxd4 {[%emt 0:00:02]} 8. Qxd4 {[%emt 0:00:08]} O-O {[%emt 0:00:04]} 9. Re1 {[%emt 0:00:03]} a6 {[%emt 0:00:15]} 10. Bf1 {[%emt 0:00:04]} b6 {[%emt 0:00:01]} 11. e5 {[%emt 0:00:25]} dxe5 {[%emt 0:00:03]} 12. Nxe5 {[%emt 0:00:03]} Bb7 {[%emt 0:00:06]} 13. Nxd7 {[%emt 0:00:06]} Nxd7 {[%emt 0:00:02]} 14. Qh4 {[%emt 0:00:06]} e6 {[%emt 0:00:19]} 15. Bg5 {[%emt 0:00:32]} Bf6 {[%emt 0:00:15]} 16. Bxf6 {[%emt 0:00:05]} Qxf6 {[%emt 0:00:02]} 17. Qxf6 {[%emt 0:00:16]} Nxf6 {[%emt 0:00:02]} 18. Rad1 {[%emt 0:00:03]} Nd5 {[%emt 0:00:07]} 19. Nxd5 {[%emt 0:00:10]} Bxd5 {[%emt 0:02:24]} 20. c4 {[%emt 0:00:02]} Bc6 {[%emt 0:00:00]} 21. Rd6 {[%emt 0:00:16]} Rfc8 {[%emt 0:00:00]} 22. b3 {[%emt 0:00:04]} Kf8 {[%emt 0:00:00]} 23. a5 {[%emt 0:00:40]} Ke7 {[%emt 0:00:00]} 24. Rd3 {[%emt 0:00:05]} b5 {[%emt 0:00:00]} 25. c5 {[%emt 0:00:05]} b4 {[%emt 0:00:00]} 26. Rd6 {[%emt 0:00:09]} Be8 {[%emt 0:00:00]} 27. Rxa6 {[%emt 0:00:15]} Rxa6 {[%emt 0:00:00]} 28. Bxa6 {[%emt 0:00:03]} Rxc5 {[%emt 0:00:00]} 29. Ra1 {[%emt 0:00:01]} Kd6 {[%emt 0:00:00]} 30. Be2 {[%emt 0:00:15]} Kc7 {[%emt 0:00:00]} 31. a6 {[%emt 0:00:05]} Kb8 {[%emt 0:00:00]} 32. h4 {[%emt 0:00:12]} Ka7 {[%emt 0:00:00]} 33. Bc4 {[%emt 0:00:10]} Bc6 {[%emt 0:00:06]} 34. Rd1 {[%emt 0:00:00]} Bd5 {[%emt 0:00:03]} 35. Bxd5 {[%emt 0:00:03]} exd5 {[%emt 0:00:08]} 36. Rd4 {[%emt 0:00:02]} Rb5 {[%emt 0:00:03]} 37. Kf1 {[%emt 0:00:02]} Kxa6 {[%emt 0:00:02]} 38. Ke2 {[%emt 0:00:02]} Kb6 {[%emt 0:00:05]} 39. Rf4 {[%emt 0:00:02]} f5 {[%emt 0:00:02]} 40. g4 {[%emt 0:00:02]} fxg4 {[%emt 0:00:03]} 41. Rxg4 {[%emt 0:00:02]} Kc5 {[%emt 0:00:09]} 42. h5 {[%emt 0:00:03]} Rb6 {[%emt 0:00:01]} 43. Rh4 {[%emt 0:00:06]} g5 {[%emt 0:00:06]} 44. Rg4 {[%emt 0:00:03]} h6 {[%emt 0:00:04]} 45. f4 {[%emt 0:00:01]} Re6+ {[%emt 0:00:02]} 46. Kf3 {[%emt 0:00:07]} Rf6 {[%emt 0:00:02]} 47. Ke3 {[%emt 0:00:04]} Rxf4 {[%emt 0:00:16]} 48. Rg1 {[%emt 0:00:02]} Rh4 {[%emt 0:00:03]} 49. Rc1+ {[%emt 0:00:02]} Kd6 {[%emt 0:00:02]} 50. Rc8 {[%emt 0:00:02]} Rxh5 {[%emt 0:00:03]} 51. Rb8 {[%emt 0:00:02]} Rh3+ {[%emt 0:00:03]} 52. Kd4 {[%emt 0:00:02]} Rh4+ {[%emt 0:00:03]} 53. Kd3 {[%emt 0:00:01]} Ke5 {[%emt 0:00:06]} 54. Re8+ {[%emt 0:00:02]} Kf4 {[%emt 0:00:02]} 55. Rd8 {[%emt 0:00:03]} g4 {[%emt 0:00:06]} 56. Rxd5 {[%emt 0:00:06]} Kg3 {[%emt 0:00:04]} 57. Ke2 {[%emt 0:00:06]} Kh2 {[%emt 0:00:03]} 58. Rd4 {[%emt 0:00:03]} Kh3 {[%emt 0:00:03]} 59. Rxb4 {[%emt 0:00:03]} g3 {[%emt 0:00:04]} 60. Rxh4+ {[%emt 0:00:03]} Kxh4 {[%emt 0:00:02]} 61. Kf1 {[%emt 0:00:03]} Kg4 {[%emt 0:00:02]} 62. b4 {[%emt 0:00:02]} Kf4 {[%emt 0:00:06]} 63. b5 {[%emt 0:00:02]} Ke5 {[%emt 0:00:03]} 64. Kg2 {[%emt 0:00:02]} 1/2-1/2

[Event "Djerba Festival Blitz 2025"]
[Site "Djerba"]
[Date "2025.02.21"]
[Round "7.7"]
[White "Achour, Mohamed Anis"]
[Black "Pichon, Ewen"]
[Result "0-1"]
[ECO "D00"]
[WhiteElo "2066"]
[BlackElo "2351"]
[PlyCount "52"]
[EventDate "2025.02.15"]
[EventType "swiss"]
[EventCountry "TUN"]
[TimeControl "180+3"]

1. d4 {[%emt 0:00:04]} d5 {[%emt 0:00:05]} 2. Bf4 {[%emt 0:00:03]} Nf6 {[%emt 0:00:08]} 3. e3 {[%emt 0:00:02]} c5 {[%emt 0:00:01]} 4. dxc5 {[%emt 0:00:02]} Nc6 {[%emt 0:00:16]} 5. Bb5 {[%emt 0:00:03]} e6 {[%emt 0:00:09]} 6. b4 {[%emt 0:00:03]} Bd7 {[%emt 0:00:02]} 7. c3 {[%emt 0:00:03]} a5 {[%emt 0:00:06]} 8. Qb3 {[%emt 0:00:02]} Nh5 {[%emt 0:00:14]} 9. Bxc6 {[%emt 0:00:10]} bxc6 {[%emt 0:00:05]} 10. Ne2 {[%emt 0:00:40]} Nxf4 {[%emt 0:00:11]} 11. Nxf4 {[%emt 0:00:14]} Rb8 {[%emt 0:00:02]} 12. Nd3 {[%emt 0:00:09]} Qf6 {[%emt 0:00:27]} 13. a3 {[%emt 0:00:01]} e5 {[%emt 0:00:05]} 14. O-O {[%emt 0:00:22]} e4 {[%emt 0:00:06]} 15. Nf4 {[%emt 0:00:02]} Bxc5 {[%emt 0:00:04]} 16. Qa4 {[%emt 0:00:03]} axb4 {[%emt 0:00:04]} 17. axb4 {[%emt 0:00:10]} Bd6 {[%emt 0:00:03]} 18. g3 {[%emt 0:00:17]} g5 {[%emt 0:00:06]} 19. Ne2 {[%emt 0:00:02]} Kf8 {[%emt 0:00:13]} 20. Nd4 {[%emt 0:00:15]} Rc8 {[%emt 0:00:07]} 21. Qa7 {[%emt 0:00:04]} Bh3 {[%emt 0:00:35]} 22. Nd2 {[%emt 0:00:15]} Bxf1 23. Rxf1 {[%emt 0:00:03]} g4 {[%emt 0:00:08]} 24. Qb7 {[%emt 0:00:06]} Rc7 {[%emt 0:00:05]} 25. Qb8+ {[%emt 0:00:06]} Kg7 {[%emt 0:00:03]} 26. Qb6 {[%emt 0:00:02]} Be5 {[%emt 0:00:04]} 0-1

[Event "Djerba Festival Blitz 2025"]
[Site "Djerba"]
[Date "2025.02.21"]
[Round "7.8"]
[White "Maghsoodloo, Parham"]
[Black "Zouaghi, Ahmed"]
[Result "1-0"]
[ECO "B10"]
[WhiteElo "2680"]
[BlackElo "1919"]
[PlyCount "67"]
[EventDate "2025.02.15"]
[EventType "swiss"]
[EventCountry "TUN"]
[TimeControl "180+3"]

1. e4 {[%emt 0:00:03]} c5 {[%emt 0:00:02]} 2. Nf3 {[%emt 0:03:06]} g6 {[%emt 0:03:07]} 3. c3 {[%emt 0:00:00]} Bg7 {[%emt 0:00:00]} 4. d4 {[%emt 0:00:00]} cxd4 5. cxd4 {[%emt 0:00:00]} d5 {[%emt 0:00:00]} 6. exd5 {[%emt 0:00:00]} Nf6 {[%emt 0:00:00]} 7. Bb5+ {[%emt 0:00:00]} Nbd7 {[%emt 0:00:00]} 8. Nc3 {[%emt 0:00:00]} O-O {[%emt 0:00:00]} 9. Bg5 {[%emt 0:00:00]} Nb6 {[%emt 0:00:00]} 10. O-O {[%emt 0:00:00]} Nbxd5 {[%emt 0:00:00]} 11. Re1 {[%emt 0:00:00]} a6 {[%emt 0:00:00]} 12. Bc4 {[%emt 0:00:00]} Nb6 {[%emt 0:00:00]} 13. Bb3 {[%emt 0:00:00]} Bg4 {[%emt 0:00:00]} 14. h3 {[%emt 0:00:00]} Bxf3 {[%emt 0:00:00]} 15. Qxf3 {[%emt 0:00:00]} Qd7 {[%emt 0:00:00]} 16. a4 {[%emt 0:00:00]} Rac8 {[%emt 0:00:00]} 17. a5 {[%emt 0:00:00]} Nc4 {[%emt 0:00:00]} 18. Qe2 {[%emt 0:00:00]} Nxb2 {[%emt 0:00:00]} 19. Qxb2 {[%emt 0:00:00]} Qxd4 {[%emt 0:00:00]} 20. Na4 {[%emt 0:00:00]} Qxb2 {[%emt 0:00:09]} 21. Nxb2 {[%emt 0:00:57]} e6 22. Rab1 {[%emt 0:00:00]} Rc5 {[%emt 0:00:14]} 23. Bd2 {[%emt 0:00:00]} Nd7 {[%emt 0:00:11]} 24. Nd3 {[%emt 0:00:00]} Rcc8 {[%emt 0:00:13]} 25. Ba4 {[%emt 0:00:00]} Nf6 {[%emt 0:00:11]} 26. Ne5 {[%emt 0:00:00]} Nd5 {[%emt 0:00:09]} 27. Rxb7 {[%emt 0:00:00]} h5 {[%emt 0:00:04]} 28. Nc6 {[%emt 0:00:00]} Kh7 {[%emt 0:00:03]} 29. Ra7 {[%emt 0:00:00]} Nc3 {[%emt 0:00:04]} 30. Bxc3 {[%emt 0:00:00]} Bxc3 {[%emt 0:00:02]} 31. Re3 {[%emt 0:00:00]} Rxc6 {[%emt 0:00:04]} 32. Bxc6 {[%emt 0:00:33]} Bd4 {[%emt 0:00:06]} 33. Rxa6 {[%emt 0:00:00]} Bxe3 {[%emt 0:00:00]} 34. fxe3 {[%emt 0:00:00]} 1-0